bitfinex-derivatives/quotes_ETHF0:USTF0_20240905
["timestamp","ask_amount","ask_price","bid_price","bid_amount"]
[1725502790643,4.8512,2451.2,2451.1,0.29169295]
[1725502792546,0.7712,2451.2,2451.1,0.29169295]
[1725502793450,0.3835,2451.2,2451.1,0.29169295]
[1725502793636,0.3835,2451.2,2451.1,3.47169295]
[1725502795741,3.38555316,2451.5,2451.3,0.28553]
[1725502795948,3.77695316,2451.5,2451.3,0.28553]
[1725502796941,3.77695316,2451.5,2451.2,0.3836]
[1725502796942,3.77695316,2451.5,2451.4,0.28553]
[1725502798148,0.7615,2451.5,2451.4,0.28553]
[1725502799845,5.85365316,2451.7,2451.6,0.28551]
[1725502800252,2.64585316,2451.7,2451.6,0.28551]
[1725502801459,2.64317057,2451.7,2451.6,0.28551]
[1725502801759,0.28549,2451.8,2451.6,0.28551]
[1725502801943,2.64426308,2451.7,2451.6,0.28551]
[1725502802546,0.28549,2451.8,2451.6,0.28551]
[1725502802755,2.64481437,2451.7,2451.6,0.28551]
[1725502802950,0.50012991,2451.7,2451.5,0.28551]
[1725502803155,2.6447976,2451.6,2451.5,0.28551]
[1725502804860,2.9303076,2451.6,2451.4,0.28552]
[1725502805151,0.3688,2451.5,2451.4,0.28552]
[1725502805357,3.0135976,2451.5,2451.4,0.28552]
[1725502806055,2.6447976,2451.5,2451.4,4.36472]
[1725502806260,2.6447976,2451.6,2451.5,0.28552]
[1725502806456,3.4645172,2451.8,2451.6,0.2855]
[1725502806657,0.21469486,2451.7,2451.6,0.2855]
[1725502807361,0.21467916,2451.7,2451.6,0.2855]
[1725502808460,0.50017916,2451.7,2451.5,0.28551]
[1725502808660,3.1790272,2451.7,2451.5,0.28551]
[1725502808957,3.4645272,2451.7,2451.5,0.28551]
[1725502809154,0.21477096,2451.6,2451.5,0.28551]
[1725502809353,3.4645272,2451.7,2451.5,0.28551]
[1725502809753,3.1790272,2451.6,2451.5,0.28551]
[1725502809961,0.21476517,2451.6,2451.5,0.28551]
[1725502810351,3.39482633,2451.6,2451.5,0.28551]
[1725502810547,0.21476517,2451.6,2451.5,0.28551]
[1725502811763,0.21475774,2451.6,2451.5,0.28551]
[1725502811951,0.50026774,2451.6,2451.5,0.28551]
[1725502812158,0.21475774,2451.6,2451.5,0.28551]
[1725502812662,0.28553,2451.5,2451.3,0.28554]
[1725502812859,0.28553,2451.5,2451.1,0.00612295]
[1725502812860,3.58079913,2451.4,2451.1,0.00612295]
[1725502813049,6.36019913,2451.2,2450.4,3.2078]
[1725502813257,3.49344,2450.5,2449.9,7.7579]
[1725502813461,3.17737094,2450.3,2449.9,0.3809]
[1725502813659,0.21469792,2450.2,2449.9,0.3809]
[1725502813968,0.21469792,2450.2,2449.9,1.32]
[1725502813969,3.17737094,2450.2,2449.9,1.32]
[1725502814263,6.38517094,2450.2,2449.9,1.32]
[1725502814762,3.17737094,2450.2,2449.9,1.32]
[1725502814955,3.17737094,2450.2,2450.1,1.32]
[1725502815161,3.18349389,2450.3,2450.1,1.32]
[1725502815669,0.00612295,2450.3,2450.1,1.32]
[1725502815863,3.18349389,2450.3,2450.1,1.32]
[1725502816166,3.18349389,2450.3,2449.9,3.8508]
[1725502816363,0.3793,2450.2,2449.9,3.8508]
[1725502816568,3.5871,2450.2,2449.9,3.8508]
[1725502816766,0.3793,2450.2,2450.0,0.28569]
[1725502816960,0.00612295,2450.3,2450.0,0.28569]
[1725502819270,0.00612295,2450.3,2450.1,0.28568]
[1725502819457,0.00612295,2450.3,2450.2,0.28567]
[1725502819657,0.00612295,2450.3,2450.2,0.67517]
[1725502821669,0.00612295,2450.3,2450.2,13.96457]
[1725502822164,0.00612295,2450.3,2450.2,4.75677]
[1725502822867,0.00612295,2450.3,2450.2,13.96457]
[1725502823770,0.00612295,2450.3,2450.2,4.75677]
[1725502824162,0.00612295,2450.3,2450.2,13.96457]
[1725502826275,0.00612295,2450.3,2450.2,14.67876]
[1725502826570,0.095,2450.8,2450.7,0.28561]
[1725502826868,0.11,2450.9,2450.7,0.28561]
[1725502826869,0.3901,2451.0,2450.9,0.28559]
[1725502827767,3.3028,2451.4,2450.9,3.17]
[1725502827961,3.9663,2451.4,2451.1,0.28556]
[1725502829474,1.04403,2451.4,2450.9,3.17]
[1725502829663,3.9663,2451.4,2451.0,0.28557]
[1725502829872,3.9663,2451.4,2451.1,0.28556]
[1725502830867,4.25183,2451.4,2451.1,0.28556]
[1725502831174,3.9663,2451.4,2451.1,0.28556]
[1725502832971,4.25183,2451.4,2451.1,0.28556]
[1725502833168,3.9663,2451.4,2451.1,0.28556]
[1725502833767,3.9663,2451.4,2451.2,0.28555]
[1725502834573,4.25183,2451.4,2451.1,0.29168295]
[1725502835972,4.25183,2451.4,2451.2,0.28555]
[1725502837778,0.7585,2451.4,2451.3,0.28554]
[1725502837975,0.7585,2451.4,2451.2,0.28555]
[1725502838178,1.04403,2451.4,2451.1,0.29168295]
[1725502838475,0.28555,2451.3,2451.1,0.29168295]
[1725502838982,4.25184,2451.4,2451.2,0.28555]
[1725502839582,3.9663,2451.4,2451.2,0.28555]
[1725502839967,3.9663,2451.4,2451.3,0.28554]
[1725502841476,0.7585,2451.4,2451.3,0.28554]
[1725502842572,3.9663,2451.4,2451.3,0.28554]
[1725502845071,3.9663,2451.4,2451.2,0.70805]
[1725502845280,4.25183,2451.4,2451.2,0.28555]
[1725502845668,0.28554,2451.3,2451.1,0.00612295]
[1725502845868,0.28554,2451.3,2451.1,0.29168295]
[1725502846073,4.25184,2451.4,2451.2,0.28555]
[1725502846679,4.25184,2451.4,2451.1,1.61168295]
[1725502846980,4.25184,2451.4,2451.2,0.28555]
[1725502847182,4.25184,2451.4,2451.1,1.61168295]
[1725502847482,0.7585,2451.4,2451.3,1.60554]
[1725502847682,3.9663,2451.4,2451.3,1.60554]
[1725502848581,3.2078,2451.8,2451.6,0.2855]
[1725502848778,0.7957,2451.7,2451.6,0.2855]
[1725502850084,0.7957,2451.7,2451.6,3.4555]
[1725502852376,0.3901,2451.7,2451.6,3.4555]
[1725502856581,0.3901,2451.7,2451.5,0.28551]
[1725502857082,0.6756,2451.7,2451.5,0.28551]
[1725502857986,0.3901,2451.7,2451.5,0.28551]
[1725502858187,0.6756,2451.7,2451.5,0.28551]
[1725502858785,0.6756,2451.7,2451.4,3.5939]
[1725502858786,0.28553,2451.5,2451.2,3.45554]
[1725502859084,0.3901,2451.7,2451.1,0.29168295]
[1725502859283,0.28555,2451.3,2451.1,0.29169295]
[1725502859490,0.4198,2451.2,2451.1,0.00612295]
[1725502859875,0.4198,2451.2,2451.1,0.29169295]
[1725502860080,0.4198,2451.2,2451.1,0.00612295]
[1725502860380,0.70536,2451.2,2451.1,0.00612295]
[1725502861977,0.4198,2451.2,2451.1,0.29169295]
[1725502862688,0.8133,2451.4,2451.1,0.00612295]
[1725502862881,0.8133,2451.4,2451.2,0.28555]
[1725502863591,0.8133,2451.4,2451.3,0.28554]
[1725502866197,0.4113,2451.6,2451.5,0.28552]
[1725502866388,0.8354,2451.6,2451.5,0.28552]
[1725502868483,1.05037284,2451.6,2451.5,0.28552]
[1725502868889,4.111,2451.9,2451.8,0.28549]
[1725502869186,0.21498989,2451.9,2451.6,3.17]
[1725502869393,0.4269,2452.0,2451.6,3.17]
[1725502869593,0.50046481,2451.9,2451.6,3.17]
[1725502869791,0.21498481,2451.8,2451.6,3.45551]
[1725502869996,0.28548,2451.9,2451.6,3.45551]
[1725502870197,0.3914,2451.7,2451.6,3.45551]
[1725502871796,0.60640649,2451.7,2451.6,3.45551]
[1725502872101,0.3914,2451.7,2451.6,3.45551]
[1725502872398,0.60640267,2451.7,2451.6,3.45551]
[1725502873395,0.60643499,2451.7,2451.6,3.45551]
[1725502873600,3.46284094,2451.9,2451.7,0.2855]
[1725502873798,0.63043927,2451.8,2451.6,3.4555]
[1725502874001,0.4154,2451.8,2451.7,1.6055]
[1725502874196,3.83824107,2451.8,2451.7,1.6055]
[1725502874701,3.83824107,2451.8,2451.7,1.32]
[1725502875200,3.83824107,2451.8,2451.7,1.6055]
[1725502875399,0.63044107,2451.8,2451.7,1.6055]
[1725502875600,0.63044107,2451.8,2451.7,1.32]
[1725502875995,0.63044107,2451.8,2451.7,1.6055]
[1725502876396,3.83824107,2451.8,2451.7,1.6055]
[1725502876598,3.2078,2451.8,2451.7,1.6055]
[1725502876799,3.88974094,2452.0,2451.9,0.28547]
[1725502876800,3.17737094,2452.0,2451.9,0.28547]
[1725502876999,3.97277094,2452.1,2452.0,0.28546]
[1725502877308,4.71736773,2452.1,2452.0,0.28546]
[1725502877606,1.01043496,2452.1,2452.0,0.28546]
[1725502877804,4.71736773,2452.1,2452.0,0.28546]
[1725502878098,4.71736773,2452.1,2451.9,1.60547]
[1725502878302,3.18312718,2452.0,2451.9,1.60547]
[1725502879608,6.91473277,2452.2,2452.0,0.28546]
[1725502879609,3.18312718,2452.1,2452.0,0.28546]
[1725502879797,3.18312718,2452.1,2452.0,1.60546]
[1725502881703,3.18312718,2452.1,2452.0,1.32]
[1725502882000,0.89874977,2452.1,2451.9,1.32]
[1725502882197,3.97240625,2452.0,2451.9,1.32]
[1725502882401,0.7892,2452.0,2451.9,1.32]
[1725502882598,3.97240625,2452.0,2451.9,1.32]
[1725502883005,0.7892,2452.0,2451.9,1.32]
[1725502883306,9.9961012,2452.0,2451.5,4.197]
[1725502883499,3.18320625,2451.7,2451.5,5.517]
[1725502883702,1.29730002,2451.6,2451.5,5.517]
[1725502884016,1.29730002,2451.6,2451.5,4.197]
[1725502884205,1.01179002,2451.6,2451.5,4.197]
[1725502884410,1.29730503,2451.6,2451.5,4.197]
[1725502884913,4.19500128,2451.6,2451.5,4.197]
[1725502885212,1.29730503,2451.6,2451.5,4.197]
[1725502885410,1.29730503,2451.6,2451.4,0.28553]
[1725502885609,0.3874,2451.5,2451.4,0.28553]
[1725502885806,0.3874,2451.5,2451.3,3.85534]
[1725502886207,0.3874,2451.5,2451.4,0.28553]
[1725502886407,0.60248127,2451.5,2451.4,0.28553]
[1725502886804,0.3874,2451.5,2451.4,0.28553]
[1725502887000,0.60246677,2451.5,2451.4,0.28553]
[1725502888000,0.60246677,2451.5,2451.3,3.5698]
[1725502888214,0.60246677,2451.5,2448.7,6.19701521]
[1725502888215,0.21506278,2451.4,2451.1,3.17612295]
[1725502888409,0.50061278,2451.3,2451.1,3.17612295]
[1725502888603,3.2078,2451.2,2451.1,3.17612295]
[1725502889414,0.28555,2451.3,2451.1,3.17612295]
[1725502889712,0.21507635,2451.2,2451.1,3.17612295]
[1725502890514,0.28555,2451.3,2451.1,3.17612295]
[1725502890716,0.4223,2451.2,2451.1,3.17612295]
[1725502890909,0.8351,2451.2,2451.1,3.17612295]
[1725502891313,3.6301,2451.2,2451.1,3.46169295]
[1725502891514,3.57060625,2451.5,2451.2,0.28554]
[1725502891515,3.85612625,2451.5,2451.2,0.28554]
[1725502891712,0.3874,2451.5,2451.1,3.17612295]
[1725502892016,0.3874,2451.5,2451.3,3.45553]
[1725502892208,0.3874,2451.5,2451.4,0.28553]
[1725502892412,0.6024401,2451.5,2451.3,3.84434]
[1725502892607,0.67292,2451.5,2451.3,3.84434]
[1725502892808,0.3874,2451.5,2451.3,3.84434]
[1725502893002,0.3874,2451.5,2451.4,0.28553]
[1725502893209,0.60234161,2451.5,2451.4,0.28553]
[1725502893415,7.22610625,2451.7,2451.5,0.28551]
[1725502893416,6.81330625,2451.7,2451.5,0.28551]
[1725502893608,3.2078,2451.6,2451.5,0.28551]
[1725502894411,3.42274517,2451.6,2451.5,0.28552]
[1725502894717,3.42274517,2451.6,2451.3,3.5588]
[1725502895018,3.2078,2451.6,2451.3,3.5588]
[1725502895311,3.49331,2451.6,2451.4,0.28553]
[1725502895508,0.61017913,2451.5,2451.4,0.28553]
[1725502895910,0.3952,2451.5,2451.4,0.28553]
[1725502897907,0.61018438,2451.5,2451.3,3.17]
[1725502898107,0.68073,2451.5,2451.3,3.45554]
[1725502898516,0.68073,2451.5,2451.3,3.17]
[1725502899315,0.68073,2451.5,2451.3,3.45554]
[1725502899615,6.39100625,2451.6,2451.3,3.45554]
[1725502899616,3.2078,2451.6,2451.4,0.28552]
[1725502899809,3.2078,2451.6,2451.4,1.06962]
[1725502900116,3.2078,2451.6,2451.4,0.67922]
[1725502900418,6.39100625,2451.6,2451.4,0.67922]
[1725502900818,6.67652625,2451.6,2451.4,0.67922]
[1725502901014,0.21501416,2451.5,2451.4,0.67922]
[1725502901217,0.28554,2451.4,2451.2,0.28555]
[1725502901421,0.71344,2451.4,2451.2,0.28555]
[1725502901919,0.4279,2451.4,2451.2,0.28555]
[1725502902119,0.71344,2451.4,2451.2,0.28555]
[1725502903217,6.67651625,2451.6,2451.1,3.17612295]
[1725502903418,3.18320625,2451.6,2451.3,3.17]
[1725502904019,3.18320625,2451.6,2451.4,0.8179]
[1725502904419,3.2078,2451.5,2451.4,1.10343]
[1725502904626,3.2078,2451.5,2451.4,1.51933]
[1725502905523,0.21499684,2451.5,2451.4,1.51933]
[1725502905926,3.89100625,2451.7,2451.5,0.28551]
[1725502906228,0.21499942,2451.6,2451.5,0.28551]
[1725502906620,3.59110625,2451.8,2451.6,0.2855]
[1725502906828,0.21499865,2451.7,2451.6,0.2855]
[1725502907526,3.18320625,2451.8,2451.7,0.2855]
[1725502907723,3.39821149,2451.8,2451.7,0.2855]
[1725502908030,3.39821149,2451.8,2451.7,1.6055]
[1725502909126,0.21500524,2451.8,2451.7,1.6055]
[1725502909425,3.18320625,2451.9,2451.8,0.28549]
[1725502909725,3.39821582,2451.9,2451.8,0.67439]
[1725502909922,3.39821582,2451.9,2451.8,4.26369]
[1725502911024,3.18320625,2452.0,2451.9,0.28547]
[1725502911324,3.39819088,2452.0,2451.9,0.71077]
[1725502912522,3.18320625,2452.0,2451.9,0.71077]
[1725502912826,3.39819667,2452.0,2451.9,0.71077]
[1725502913225,3.18320625,2452.0,2451.9,0.71077]
[1725502914528,3.18320625,2452.3,2452.2,0.28544]
[1725502915022,3.18320625,2452.4,2452.3,0.28543]
[1725502915424,3.2078,2452.5,2452.4,0.28542]
[1725502915629,3.42294242,2452.5,2452.4,0.28542]
[1725502915830,3.42294242,2452.5,2452.2,0.399]
[1725502916030,3.2078,2452.5,2452.2,0.399]
[1725502916225,0.21514746,2452.4,2452.3,0.28543]
[1725502916530,6.39100625,2452.5,2452.3,0.28543]
[1725502916825,3.4932,2452.5,2452.3,0.28543]
[1725502917019,3.4932,2452.5,2452.4,0.28542]
[1725502917020,3.2078,2452.5,2452.4,0.28542]
[1725502917221,3.42293673,2452.5,2452.4,0.28542]
[1725502917730,3.42293673,2452.5,2452.3,0.28542]
[1725502917932,3.2078,2452.5,2452.3,0.28542]
[1725502918125,3.2078,2452.5,2452.4,0.28542]
[1725502920227,0.28542,2452.4,2452.1,3.17]
[1725502920421,3.92134,2452.5,2451.9,3.45547]
[1725502920623,0.28545,2452.1,2451.9,0.28547]
[1725502920832,0.8323,2452.0,2451.9,0.28547]
[1725502923037,0.8323,2452.0,2451.8,3.45548]
[1725502923038,1.11776,2452.0,2451.8,3.45548]
[1725502923632,0.8323,2452.0,2451.8,3.45548]
[1725502924025,1.11776,2452.0,2451.8,3.45548]
[1725502924533,0.8323,2452.0,2451.8,3.45548]
[1725502927538,0.8323,2452.0,2451.8,3.17]
[1725502927738,0.8323,2452.0,2451.8,3.45548]
[1725502927930,0.8323,2452.0,2451.9,0.28547]
[1725502928131,0.67763,2452.3,2452.0,0.28545]
[1725502928331,0.21513829,2452.2,2452.1,0.28545]
[1725502928534,4.0242,2452.4,2452.0,3.37794833]
[1725502928535,4.0242,2452.4,2452.2,0.28543]
[1725502928739,4.4206,2452.4,2452.3,0.28543]
[1725502928933,4.23934988,2452.4,2452.3,0.28543]
[1725502929328,4.0242,2452.4,2452.3,0.28543]
[1725502929530,3.2078,2452.4,2452.3,0.28543]
[1725502931142,3.18320625,2452.6,2452.4,0.28542]
[1725502931336,3.60730625,2452.7,2452.5,3.17]
[1725502931642,0.4241,2452.7,2452.5,3.4554]
[1725502931845,3.60730625,2452.7,2452.5,3.4554]
[1725502932441,3.60730625,2452.7,2452.5,3.17]
[1725502932637,0.4241,2452.7,2452.5,3.4554]
[1725502933030,0.4241,2452.7,2452.6,0.28539]
[1725502933836,4.003,2452.8,2452.7,0.28538]
[1725502933837,3.6066,2452.8,2452.7,0.28538]
[1725502934440,0.3988,2452.8,2452.6,0.28538]
[1725502934947,3.89197,2452.8,2452.5,3.4554]
[1725502935132,3.6066,2452.8,2452.5,3.4554]
[1725502935337,3.89197,2452.8,2452.5,3.4554]
[1725502935938,3.89197,2452.8,2452.4,0.00612295]
[1725502935939,0.28538,2452.7,2452.4,0.00612295]
[1725502936148,0.4234,2452.6,2452.4,0.00612295]
[1725502936350,6.78980625,2452.8,2452.4,0.00612295]
[1725502936547,3.6066,2452.8,2452.6,0.28539]
[1725502937043,3.6066,2452.8,2452.6,0.70119]
[1725502937836,3.6066,2452.8,2452.7,0.28538]
[1725502938040,3.6066,2452.8,2452.7,1.32]
[1725502941247,3.6066,2452.8,2452.7,1.60538]
[1725502941654,3.2078,2452.8,2452.7,1.60538]
[1725502941839,3.2078,2452.8,2452.7,5.68218]
[1725502942343,0.8182,2453.1,2452.9,0.28535]
[1725502942550,0.8182,2453.1,2453.0,1.60535]
[1725502942745,4.026,2453.1,2453.0,1.60535]
[1725502943646,4.31133,2453.1,2453.0,1.32]
[1725502944249,0.28536,2453.0,2452.7,1.60538]
[1725502944642,0.28536,2453.0,2452.8,0.28537]
[1725502944849,0.28536,2453.0,2452.9,1.32]
[1725502945151,0.28535,2453.0,2452.9,1.32]
[1725502945349,0.28537,2452.8,2452.6,0.70118]
[1725502945559,0.8155,2452.7,2452.6,1.60538]
[1725502946056,0.8155,2452.7,2452.6,3.45538]
[1725502948358,3.46855625,2453.0,2452.7,0.28537]
[1725502948654,4.28215625,2453.0,2452.7,0.28537]
[1725502949549,3.49316,2452.9,2452.7,0.28537]
[1725502950551,3.2078,2452.9,2452.7,0.28537]
[1725502950957,3.2078,2452.9,2452.8,0.28537]
[1725502952164,4.28215625,2453.0,2452.7,0.28537]
[1725502952464,4.28215625,2453.0,2452.8,0.28537]
[1725502952761,3.2078,2452.9,2452.7,0.28537]
[1725502954052,1.09895,2453.0,2452.8,0.28537]
[1725502954259,3.2078,2452.9,2452.8,0.28537]
[1725502955653,3.2078,2452.9,2452.8,3.45537]
[1725502955868,4.0214,2453.0,2452.9,0.28536]
[1725502956351,3.2078,2453.0,2452.9,0.70866]
[1725502956557,0.3967,2453.1,2453.0,0.28535]
[1725502957860,0.61163468,2453.1,2453.0,0.28535]
[1725502958262,0.3967,2453.1,2453.0,0.28535]
[1725502958469,0.611631,2453.1,2453.0,0.28535]
[1725502959764,0.611631,2453.1,2452.9,0.70865]
[1725502959958,0.214931,2453.0,2452.8,3.45536]
[1725502960265,0.214931,2452.9,2452.8,3.17]
[1725502960861,0.214931,2452.9,2452.8,3.45537]
[1725502961763,3.2078,2453.0,2452.9,0.28536]
[1725502962171,3.42256014,2453.0,2452.9,0.28536]
[1725502962566,3.8320641,2453.0,2452.9,0.28536]
[1725502962768,3.42256014,2453.0,2452.9,0.28536]
[1725502963275,0.21476014,2453.0,2452.9,0.28536]
[1725502963474,3.42256014,2453.0,2452.9,0.71266]
[1725502964378,0.21476014,2453.0,2452.9,0.71266]
[1725502965667,0.21476014,2453.0,2452.9,1.51746]
[1725502965869,0.3967,2453.1,2453.0,0.28535]
[1725502967677,4.10363277,2453.1,2453.0,0.28535]
[1725502967871,4.10363277,2453.1,2452.9,1.60535]
[1725502968076,6.38267931,2453.0,2452.9,1.60535]
[1725502968281,6.91473277,2453.0,2452.9,1.60535]
[1725502969374,4.10363277,2453.1,2453.0,0.28535]
[1725502970680,4.10272732,2453.1,2453.0,0.28535]
[1725502971281,3.70602732,2453.1,2453.0,0.28535]
[1725502971479,5.0557544,2453.2,2453.0,0.28535]
[1725502971480,5.0557544,2453.2,2453.1,0.28533]
[1725502971677,5.27039648,2453.2,2453.1,1.60533]
[1725502972178,5.0557544,2453.2,2453.1,1.60533]
[1725502972478,1.03333416,2453.2,2453.1,1.60533]
[1725502972881,1.69757473,2453.2,2453.1,1.60533]
[1725502973374,4.90537473,2453.2,2453.1,1.60533]
[1725502973780,9.63819589,2453.2,2453.1,1.60533]
[1725502974177,9.92351589,2453.2,2453.1,1.32]
[1725502974575,7.34823118,2453.2,2453.1,1.32]
[1725502974783,10.55603118,2453.2,2453.1,1.32]
[1725502975180,0.28533,2453.1,2452.9,0.28535]
[1725502975380,5.49225013,2453.0,2452.8,1.32]
[1725502975591,4.52666068,2452.9,2452.8,1.32]
[1725502975787,8.61340869,2452.9,2452.8,1.32]
[1725502975987,4.37210801,2452.9,2452.8,1.32]
[1725502976681,14.16354801,2452.9,2452.5,4.197]
[1725502976888,3.46734565,2452.7,2452.5,5.517]
[1725502977085,1.29414801,2452.6,2452.5,5.517]
[1725502977281,1.29414801,2452.6,2452.5,1.32]
[1725502977687,1.29414801,2452.6,2452.5,1.6054]
[1725502978185,1.29414801,2452.6,2452.5,1.32]
[1725502978378,7.68390366,2452.6,2452.5,1.32]
[1725502978581,4.50194801,2452.6,2452.5,1.32]
[1725502978786,7.68390366,2452.6,2452.5,1.6054]
[1725502978986,4.50194801,2452.6,2452.5,1.6054]
[1725502979184,4.50194801,2452.6,2452.5,1.32]
[1725502979587,4.50202783,2452.6,2452.5,1.6054]
[1725502980993,3.623,2452.6,2452.5,1.6054]
[1725502981284,0.6298615,2452.6,2452.5,1.6054]
[1725502981887,0.62988168,2452.6,2452.5,1.6054]
[1725502982985,4.34157295,2452.6,2452.5,1.6054]
[1725502983189,0.62988168,2452.6,2452.5,1.6054]
[1725502983490,0.62988168,2452.6,2452.4,0.00612295]
[1725502983491,0.2854,2452.5,2452.4,0.00612295]
[1725502983792,4.21177295,2452.5,2452.4,0.00612295]
[1725502983993,4.98712701,2452.5,2452.4,0.00612295]
[1725502984196,9.22842769,2452.5,2452.4,0.00612295]
[1725502984393,0.28543,2452.3,2452.1,1.32]
[1725502984692,4.31020686,2452.2,2452.1,1.32]
[1725502985189,4.09552518,2452.2,2452.1,1.32]
[1725502985392,4.31018749,2452.2,2452.1,1.32]
[1725502985699,4.59562749,2452.2,2452.1,1.32]
[1725502985995,5.37287199,2452.2,2452.1,1.32]
[1725502986196,8.67109121,2452.2,2452.1,1.32]
[1725502988390,4.74884,2452.2,2452.1,1.32]
[1725502988598,8.4564289,2452.2,2452.1,1.32]
[1725502988789,4.74884,2452.2,2452.1,1.32]
[1725502989094,4.74884,2452.2,2451.9,0.00612295]
[1725502989095,0.28546,2452.0,2451.9,0.00612295]
[1725502989307,0.28551,2451.6,2451.4,1.32]
[1725502989502,3.49331,2451.6,2451.4,1.32]
[1725502989802,1.05542,2451.5,2451.4,1.32]
[1725502990097,0.7699,2451.5,2451.4,1.32]
[1725502990293,0.7699,2451.5,2451.3,1.32]
[1725502990496,0.28553,2451.4,2451.3,1.32]
[1725502991388,4.36473,2451.4,2451.3,1.32]
[1725502991998,0.28554,2451.3,2451.2,0.00612295]
[1725502992194,3.49334,2451.3,2451.2,0.00612295]
[1725502992393,7.57254,2451.3,2451.2,0.00612295]
[1725502994196,3.2078,2451.3,2451.2,0.00612295]
[1725502995200,3.2078,2451.3,2451.2,0.40602295]
[1725502996504,3.2078,2451.3,2451.2,0.69158295]
[1725502996696,1.05543,2451.5,2451.3,0.28554]
[1725502996697,0.7699,2451.5,2451.3,0.28554]
[1725502996896,3.2078,2451.4,2451.3,0.3903]
[1725502997401,3.2078,2451.4,2451.3,0.67584]
[1725502998395,3.2078,2451.4,2451.3,0.3903]
[1725502999094,0.7699,2451.5,2451.3,0.3903]
[1725502999297,3.2078,2451.4,2451.3,0.3903]
[1725502999497,3.2078,2451.4,2451.2,3.86157295]
[1725503000504,0.7699,2451.5,2451.3,0.28554]
[1725503000700,3.2078,2451.4,2451.3,0.28554]
[1725503001007,0.7699,2451.5,2451.3,0.28554]
[1725503001895,3.2078,2451.7,2451.4,3.17]
[1725503001896,3.5927,2451.7,2451.4,3.17]
[1725503002099,3.8782,2451.7,2451.4,3.45552]
[1725503002302,3.8782,2451.7,2451.5,0.3734]
[1725503002503,3.5927,2451.7,2451.5,0.3734]
[1725503002702,3.5927,2451.7,2451.6,0.3849]
[1725503002902,3.2078,2451.7,2451.6,0.67041]
[1725503003200,3.2078,2451.7,2451.6,3.84041]
[1725503003598,0.67037,2452.0,2451.6,3.84041]
[1725503003599,0.67037,2452.0,2451.7,0.28549]
[1725503005000,0.67037,2452.0,2451.6,3.8404]
[1725503005312,0.67037,2452.0,2451.7,0.2855]
[1725503007807,3.2078,2451.8,2451.6,3.5549]
[1725503008019,0.28552,2451.6,2451.3,0.28554]
[1725503008310,3.49333,2451.5,2451.2,3.84317295]
[1725503008505,0.28553,2451.4,2451.2,3.55762295]
[1725503008813,3.607,2451.5,2451.2,3.55762295]
[1725503008814,3.89253,2451.5,2451.2,3.84317295]
[1725503009199,3.607,2451.5,2451.2,3.55762295]
[1725503009401,0.28554,2451.3,2451.2,0.00612295]
[1725503009604,4.36474,2451.3,2451.2,0.00612295]
[1725503010615,11.07861,2451.3,2451.2,0.00612295]
[1725503011020,10.36474,2451.3,2451.2,0.00612295]
[1725503015823,11.07861,2451.3,2451.2,0.00612295]
[1725503019411,14.28641,2451.3,2451.2,0.00612295]
[1725503021910,7.57254,2451.3,2451.2,0.00612295]
[1725503022116,3.49334,2451.3,2451.2,0.00612295]
[1725503024128,0.28561,2450.8,2450.3,3.5897]
[1725503024334,0.28561,2450.7,2450.4,1.05204]
[1725503024631,1.05261,2450.7,2450.4,1.05204]
[1725503024836,0.28563,2450.6,2450.4,0.7664]
[1725503025131,0.28563,2450.6,2449.9,8.11906]
[1725503025132,0.28565,2450.4,2450.0,0.28569]
[1725503025336,0.28565,2450.4,2450.3,0.00612295]
[1725503025643,3.49345,2450.4,2450.3,0.00612295]
[1725503025835,7.57425,2450.4,2450.3,0.00612295]
[1725503027834,3.49345,2450.4,2450.3,0.00612295]
[1725503028032,3.2078,2450.4,2450.3,0.00612295]
[1725503029339,3.2078,2450.4,2450.3,0.67738295]
[1725503031247,3.88613295,2450.7,2450.4,0.28565]
[1725503031435,3.60052295,2450.7,2450.4,0.66905]
[1725503031946,3.88614295,2450.7,2450.4,0.3834]
[1725503032846,3.60052295,2450.7,2450.4,0.66905]
[1725503033839,3.88613295,2450.7,2450.4,0.3834]
[1725503035551,0.28563,2450.6,2450.4,0.3834]
[1725503040053,3.49954295,2450.7,2450.4,0.66905]
[1725503041355,0.28563,2450.6,2450.4,0.3834]
[1725503041544,3.21392295,2450.7,2450.4,0.66905]
[1725503041545,3.49954295,2450.7,2450.4,0.66905]
[1725503041745,3.49954295,2450.7,2450.4,0.3834]
[1725503041946,3.49954295,2450.7,2450.4,0.66905]
[1725503042155,0.28563,2450.6,2450.4,0.3834]
[1725503042547,3.49954295,2450.7,2450.4,0.3834]
[1725503042749,3.49954295,2450.7,2450.4,0.66905]
[1725503043452,3.49954295,2450.7,2450.5,0.3827]
[1725503044058,3.21392295,2450.7,2450.5,0.3827]
[1725503044263,3.21392295,2450.7,2450.6,0.28563]
[1725503044557,3.21392295,2450.7,2450.5,0.66833]
[1725503044950,3.21392295,2450.7,2450.6,0.28563]
[1725503045348,0.095,2451.0,2450.9,0.28559]
[1725503045555,4.0923,2451.2,2450.9,0.28559]
[1725503045556,4.26786,2451.2,2450.9,0.28559]
[1725503045746,3.9823,2451.2,2450.9,0.28559]
[1725503045952,3.9823,2451.2,2451.0,0.3748]
[1725503046149,3.9823,2451.2,2451.0,0.66038]
[1725503046353,3.2078,2451.2,2451.0,0.66038]
[1725503046550,3.2078,2451.2,2451.1,1.08137]
[1725503047454,3.2078,2451.2,2451.1,11.16137]
[1725503047851,3.2078,2451.2,2451.1,5.16137]
[1725503048058,0.00612295,2451.3,2451.2,0.28556]
[1725503048358,3.21392295,2451.3,2451.2,4.36476]
[1725503048558,0.00612295,2451.3,2451.2,4.36476]
[1725503048766,3.21392295,2451.3,2451.2,4.36476]
[1725503048958,0.00612295,2451.3,2451.2,4.36476]